bitfinex-derivatives/quotes_ETHF0:USTF0_20250929
["timestamp","ask_amount","ask_price","bid_price","bid_amount"]
[1759114615480,1.52907544,4112.0,4111.9,0.208]
[1759114615672,0.43756,4111.8,4111.7,0.64557]
[1759114615872,1.20246,4111.8,4111.7,0.208]
[1759114616372,1.20246,4111.8,4111.7,1.09118341]
[1759114616569,0.7649,4111.8,4111.7,1.62718341]
[1759114616882,0.551,4111.8,4111.7,1.87218341]
[1759114621472,3.5377,4112.3,4112.2,0.536]
[1759114621677,3.2078,4112.3,4112.2,1.87218341]
[1759114621872,0.65858,4112.6,4112.5,0.4257]
[1759114622078,0.98848,4112.6,4112.5,0.989]
[1759114622277,0.551,4112.6,4112.5,1.87218341]
[1759114622676,0.551,4112.6,4112.5,0.989]
[1759114622677,0.7649,4112.6,4112.5,0.989]
[1759114622879,0.7649,4112.6,4112.5,0.245]
[1759114625485,0.7649,4112.6,4112.5,0.6707]
[1759114625682,0.3299,4112.6,4112.5,0.989]
[1759114625984,0.551,4112.6,4112.5,0.989]
[1759114626184,0.7649,4112.6,4112.5,0.989]
[1759114628791,0.7649,4112.6,4112.5,0.6707]
[1759114628978,0.3299,4112.3,4112.0,0.88318341]
[1759114629181,0.7649,4112.1,4112.0,0.88318341]
[1759114629385,0.7649,4112.1,4112.0,1.33618341]
[1759114630473,0.7649,4112.1,4112.0,1.09118341]
[1759114630687,0.435,4111.9,4111.8,3.2078]
[1759114630889,0.435,4111.9,4111.8,0.245]
[1759114630890,0.7649,4111.9,4111.8,0.245]
[1759114631085,0.7649,4111.9,4111.3,3.2078]
[1759114631086,0.1358,4111.5,4111.3,3.2078]
[1759114631280,0.3569,4111.5,4111.4,1.33618341]
[1759114631483,0.5708,4111.5,4111.4,1.33618341]
[1759114631884,0.9007,4111.5,4111.4,1.33618341]
[1759114632380,0.9007,4111.5,4111.4,1.55388341]
[1759114632580,0.9007,4111.5,4111.4,0.4257]
[1759114632779,0.9007,4111.5,4111.4,1.55388341]
[1759114633692,0.9007,4111.5,4111.4,1.87708341]
[1759114634395,0.9007,4111.5,4111.4,1.30888341]
[1759114634586,0.9007,4111.5,4111.4,0.88318341]
[1759114634984,0.8944,4111.0,4110.9,0.2249]
[1759114635183,0.8944,4111.0,4110.9,1.35308341]
[1759114635786,0.8944,4111.0,4110.9,1.10808341]
[1759114635984,0.8944,4111.0,4110.9,1.35308341]
[1759114640785,0.8944,4111.0,4110.9,1.56208341]
[1759114640986,0.8944,4111.0,4110.9,1.88528341]
[1759114641198,0.5426,4111.3,4111.2,0.96982]
[1759114641388,3.2078,4111.7,4111.2,0.96982]
[1759114641389,3.5297,4111.7,4111.6,0.4339]
[1759114641589,3.7504,4111.7,4111.6,1.88528341]
[1759114642095,3.977,4111.7,4111.6,1.88528341]
[1759114642396,1.20677,4111.7,4111.6,1.88528341]
[1759114643184,0.5426,4111.7,4111.6,1.88528341]
[1759114643386,0.3219,4111.7,4111.6,1.88528341]
[1759114643588,1.34254,4112.0,4111.9,0.4339]
[1759114643790,1.86659099,4112.0,4111.9,1.31708341]
[1759114644499,0.905,4112.0,4111.9,1.63618341]
[1759114644796,0.3219,4112.0,4111.9,1.63618341]
[1759114644992,0.5362,4112.0,4111.9,1.63618341]
[1759114645389,0.8886,4112.0,4111.9,1.31708341]
[1759114646200,0.8886,4112.0,4111.9,1.63618341]
[1759114646704,3.2078,4112.3,4111.9,1.63618341]
[1759114646705,0.3268,4112.2,4112.0,0.43754]
[1759114646891,0.7586,4112.2,4112.1,0.5274]
[1759114647196,0.7586,4112.2,4112.1,0.4348]
[1759114647398,0.7586,4112.2,4112.1,0.2265]
[1759114649795,0.7586,4112.2,4112.1,0.4348]
[1759114650099,0.78759,4112.5,4112.4,0.7539]
[1759114650604,0.98104491,4112.7,4112.6,0.7539]
[1759114650900,1.19854491,4112.7,4112.6,1.63708341]
[1759114651298,0.76107491,4112.7,4112.6,1.63708341]
[1759114652300,0.54357491,4112.7,4112.6,1.63708341]
[1759114652595,0.32927491,4112.7,4112.6,1.63708341]
[1759114653004,0.54357491,4112.7,4112.6,1.63708341]
[1759114658801,0.76107491,4112.7,4112.6,1.31798341]
[1759114662902,0.76107491,4112.7,4112.6,1.63708341]
[1759114663105,0.54357491,4112.7,4112.6,1.63708341]
[1759114663602,0.54357491,4112.7,4112.6,1.88208341]
[1759114664006,0.54357491,4112.7,4112.6,2.31956341]
[1759114664007,0.98103491,4112.7,4112.6,2.31956341]
[1759114665007,0.54357491,4112.7,4112.6,2.31956341]
[1759114665207,0.32927491,4112.7,4112.6,2.31956341]
[1759114666401,0.76673491,4112.7,4112.6,2.31956341]
[1759114667208,0.98103491,4112.7,4112.6,1.88208341]
[1759114668300,0.98103491,4112.7,4112.6,2.31956341]
[1759114669108,0.54357491,4112.7,4112.6,2.31956341]
[1759114669310,0.98103491,4112.7,4112.6,2.31956341]
[1759114669807,0.98103491,4112.7,4112.6,1.88208341]
[1759114672103,1.19853491,4112.7,4112.6,1.88208341]
[1759114675104,0.98103491,4112.7,4112.6,2.31956341]
[1759114676113,0.98103491,4112.7,4112.6,1.88208341]
[1759114676313,1.50507199,4112.7,4112.6,1.88208341]
[1759114677109,1.50507199,4112.7,4112.6,2.31956341]
[1759114678313,1.50507199,4112.7,4112.6,2.45782955]
[1759114678818,1.50507199,4112.7,4112.6,2.02034955]
[1759114683923,1.71367199,4112.7,4112.6,1.70124955]
[1759114684323,1.06761199,4112.7,4112.6,2.01844955]
[1759114684925,1.50507199,4112.7,4112.6,2.01844955]
[1759114688120,1.50507199,4112.7,4112.6,2.45592955]
[1759114690930,0.00247491,4112.7,4112.6,2.45592955]
[1759114693124,1.31958,4113.5,4113.4,0.2173]
[1759114693327,1.84331177,4113.5,4113.4,1.48374955]
[1759114694132,1.84513811,4113.5,4113.4,1.48647304]
[1759114696045,1.84513811,4113.5,4113.4,2.00457304]
[1759114698745,1.84513811,4113.5,4113.4,1.48647304]
[1759114699141,1.84513811,4113.5,4113.4,0.00272349]
[1759114699340,0.43741,4113.2,4113.1,3.19701974]
[1759114699647,1.19441,4113.2,4113.1,3.19701974]
[1759114699836,0.56043,4113.0,4112.9,0.245]
[1759114700042,0.88,4113.0,4112.9,0.245]
[1759114700243,0.88,4113.0,4112.9,0.24738706]
[1759114700244,1.31743,4113.0,4112.9,0.24738706]
[1759114703148,1.31743,4113.0,4112.9,0.00238706]
[1759114703354,1.84066725,4113.0,4112.9,0.00238706]
[1759114707260,0.88,4113.0,4112.9,1.77263661]
[1759114707555,0.3241,4113.3,4113.2,0.2123]
[1759114707753,1.07158133,4113.3,4113.2,1.68554955]
[1759114708053,0.5483,4113.3,4113.2,1.68554955]
[1759114708255,0.7594,4113.3,4113.2,5.22304955]
[1759114709253,0.7594,4113.3,4113.2,5.66045955]
[1759114710455,0.7594,4113.3,4113.2,5.33075955]
[1759114710751,0.7594,4113.3,4113.2,4.89334955]
[1759114712554,0.7594,4113.3,4113.2,4.64834955]
[1759114712757,0.7594,4113.3,4113.2,4.89334955]
[1759114712954,0.7594,4113.3,4113.2,5.22304955]
[1759114714359,0.7594,4113.3,4113.2,4.97804955]
[1759114714655,0.7594,4113.3,4113.2,5.22304955]
[1759114715257,0.3241,4113.3,4113.2,5.22304955]
[1759114715653,0.7594,4113.3,4113.2,4.2016]
[1759114715858,0.7594,4113.3,4113.2,5.22304955]
[1759114716345,0.5352,4113.3,4113.2,5.22304955]
[1759114716547,0.12702634,4113.5,4113.3,0.4374]
[1759114716751,0.00182634,4113.5,4113.4,0.9938]
[1759114717354,0.32592634,4113.5,4113.4,0.9938]
[1759114717553,0.85006089,4113.5,4113.4,0.9938]
[1759114718450,1.07426089,4113.5,4113.4,0.9938]
[1759114719559,1.07426089,4113.5,4113.4,1.43119]
[1759114723148,0.00182634,4113.5,4113.4,1.43119]
[1759114729260,0.55012634,4113.5,4113.4,1.43119]
[1759114729763,0.89422634,4113.5,4113.4,1.18619]
[1759114729971,0.43739,4113.4,4113.2,4.22924955]
[1759114730161,0.7594,4113.3,4113.2,4.43604955]
[1759114730359,0.7594,4113.3,4113.2,4.68104955]
[1759114730765,0.7594,4113.3,4113.2,4.89334955]
[1759114731260,0.7594,4113.3,4113.2,5.22304955]
[1759114734672,0.34022634,4113.5,4113.4,0.7655]
[1759114734865,0.56032634,4113.5,4113.4,1.0105]
[1759114736061,0.68852634,4113.5,4113.4,1.0105]
[1759114736258,0.89882634,4113.5,4113.4,1.0105]
[1759114737260,1.42330765,4113.5,4113.4,0.6909]
[1759114738067,1.86068765,4113.5,4113.4,0.6909]
[1759114739169,1.42330765,4113.5,4113.4,1.44789]
[1759114739768,1.86068765,4113.5,4113.4,1.44789]
[1759114740271,1.86068765,4113.5,4113.4,2.33032942]
[1759114741668,1.86068765,4113.5,4113.4,1.89293942]
[1759114742477,1.86068765,4113.5,4113.4,2.33032942]
[1759114742877,1.2062,4113.3,4113.2,3.2078]
[1759114743086,0.99603,4113.0,4112.9,0.00238706]
[1759114743274,1.33443,4113.0,4112.9,0.00238706]
[1759114743469,1.33443,4113.0,4112.9,0.46898706]
[1759114743774,1.33443,4113.0,4112.9,0.69328706]
[1759114743975,1.33443,4113.0,4112.9,0.46898706]
[1759114744875,0.897,4113.0,4112.9,0.46898706]
[1759114747577,0.897,4113.0,4112.9,1.01288706]
[1759114755480,0.897,4113.0,4112.9,1.45032706]
[1759114756281,0.897,4113.0,4112.9,1.13072706]
[1759114757574,0.897,4113.0,4112.9,1.44722706]
[1759114758280,0.897,4113.0,4112.9,1.20222706]
[1759114758481,0.897,4113.0,4112.9,1.44722706]
[1759114760281,0.897,4113.0,4112.9,2.08466648]
[1759114760482,0.897,4113.0,4112.9,2.32966648]
[1759114761082,0.2059,4114.0,4113.9,0.88374]
[1759114761375,0.2059,4114.0,4113.0,0.1302]
[1759114761376,0.43734,4113.9,4113.6,0.88243942]
[1759114761679,0.4137,4113.8,4113.7,0.245]
[1759114762180,0.41636036,4113.8,4113.7,0.245]
[1759114762378,0.41636036,4113.8,4113.7,0.5615]
[1759114762679,0.41636036,4113.8,4113.7,0.7834]
[1759114762882,0.41636036,4113.8,4113.7,1.0079]
[1759114763081,0.72636036,4113.8,4113.7,1.0079]
[1759114770181,0.72636036,4113.8,4113.5,0.43738]
[1759114770381,0.8757,4113.5,4113.4,0.3205]
[1759114770576,0.4357,4113.3,4113.2,3.2078]
[1759114770784,1.27813702,4113.3,4113.2,3.2078]
[1759114772981,1.27813702,4113.3,4113.2,4.09023942]
[1759114773186,0.7516,4113.3,4113.2,4.85113942]
[1759114776191,1.28096739,4113.3,4113.2,4.85113942]
[1759114777097,1.28096739,4113.3,4113.2,1.64333942]
[1759114782001,0.1241,4113.0,4112.9,0.00238706]
[1759114782202,2.53245161,4113.0,4112.9,0.00238706]
[1759114782494,7.53245161,4113.0,4112.9,0.00238706]
[1759114785807,6.65001219,4113.0,4112.9,0.00238706]
[1759114788709,1.28091219,4113.0,4112.9,0.76328706]
[1759114789008,0.7516,4113.0,4112.9,0.76328706]
[1759114790818,0.68243,4113.1,4113.0,1.32583]
[1759114791110,1.21114428,4113.1,4113.0,1.32583]
[1759114791508,1.74604428,4113.1,4113.0,1.32583]
[1759114791818,1.74604428,4113.1,4113.0,0.8884]
[1759114792815,1.71774428,4113.1,4113.0,0.8884]
[1759114793514,1.71774428,4113.1,4113.0,0.7609]
[1759114800212,1.28031428,4113.1,4113.0,0.7609]
[1759114800412,1.28031428,4113.1,4113.0,1.19833]
[1759114800618,1.28031428,4113.1,4113.0,1.33363]
[1759114801014,1.71773428,4113.1,4113.0,1.33363]
[1759114801717,1.71773428,4113.1,4113.0,0.7609]
[1759114801923,1.35073,4113.0,4112.9,0.00238706]
[1759114802220,2.12444428,4113.0,4112.9,0.00238706]
[1759114802519,2.12570656,4113.0,4112.9,0.00238706]
[1759114804015,7.12570656,4113.0,4112.9,0.00238706]
[1759114804724,1.35084,4112.0,4111.9,0.21]
[1759114804915,1.88081656,4112.0,4111.9,0.5332]
[1759114805222,1.30917656,4112.0,4111.9,1.76672304]
[1759114805419,0.2183,4112.0,4111.9,1.76672304]
[1759114805617,0.2183,4112.0,4111.9,1.76960816]
[1759114805817,0.53002366,4112.0,4111.9,1.76960816]
[1759114806020,3.2078,4112.5,4112.4,0.7453]
[1759114806322,4.20093,4113.1,4113.0,0.7453]
[1759114806510,3.95875928,4113.1,4113.0,1.90202304]
[1759114806913,3.95875928,4113.1,4113.0,0.8806]
[1759114807219,4.51965928,4113.1,4113.0,0.5332]
[1759114807417,4.51965928,4113.1,4113.0,0.7453]
[1759114807722,4.51965928,4113.1,4113.0,0.8806]
[1759114807921,4.51965928,4113.1,4113.0,0.7453]
[1759114809312,4.51965928,4113.1,4113.0,0.8806]
[1759114809520,1.31185928,4113.1,4113.0,0.8806]
[1759114810626,0.75095928,4113.1,4113.0,0.8806]
[1759114811822,0.53265928,4113.1,4113.0,0.8806]
[1759114814922,1.20026,4113.7,4113.6,0.2224]
[1759114815126,1.73300192,4113.7,4113.6,0.5413]
[1759114815327,1.73300192,4113.7,4113.6,0.7539]
[1759114816023,1.73300192,4113.7,4113.6,1.77532304]
[1759114817328,1.20026,4113.7,4113.6,1.77532304]
[1759114821030,0.65716,4113.7,4113.6,1.77532304]
[1759114821235,0.2198,4113.7,4113.6,1.77532304]
[1759114821630,0.5559,4113.7,4113.6,1.77532304]
[1759114822934,0.7629,4113.7,4113.6,1.77532304]
[1759114823332,0.7629,4113.7,4113.6,0.7539]
[1759114823635,0.7629,4113.7,4113.6,0.5413]
[1759114824330,0.7629,4113.7,4113.6,0.7539]
[1759114826535,1.20026,4113.7,4113.6,1.19127]
[1759114828535,1.20026,4113.7,4113.6,0.7539]
[1759114829035,1.20026,4113.7,4112.9,0.2077]
[1759114829036,0.8703,4113.0,4112.9,0.2077]
[1759114829340,0.7472,4112.9,4112.8,3.9808]
[1759114829838,0.7472,4112.9,4112.8,4.1956]
[1759114831639,0.2244,4112.9,4112.8,4.1956]
[1759114833226,0.5385,4112.9,4112.8,4.1956]
[1759114834040,0.2244,4112.9,4112.8,4.1956]
[1759114834939,0.7472,4112.9,4112.8,3.4155]
[1759114835139,0.7472,4112.7,4112.6,0.773]
[1759114835441,0.7472,4112.7,4112.6,0.528]
[1759114835642,0.43748,4112.6,4112.3,3.7731]
[1759114835842,0.7472,4112.5,4112.4,1.18029]
[1759114836042,0.7472,4112.5,4112.4,2.20171304]
[1759114836944,0.7472,4112.5,4112.4,2.44671304]
[1759114838444,0.43744,4113.0,4112.8,1.18025]
[1759114838647,0.66182,4113.2,4113.1,0.4225]
[1759114838836,1.50861695,4113.2,4113.1,0.7428]
[1759114839144,1.71731695,4113.2,4113.1,0.7428]
[1759114848453,1.71731695,4113.2,4113.1,0.528]
[1759114849448,0.43744,4112.9,4112.8,3.2078]
[1759114849649,1.71733695,4112.9,4112.8,3.2078]
[1759114849949,1.71733695,4112.9,4112.8,3.4155]
[1759114850343,1.71733695,4112.9,4112.8,3.7358]
[1759114851255,1.71733695,4112.9,4112.8,4.17325]
[1759114851450,0.75709695,4112.9,4112.8,5.40947304]
[1759114851657,0.2244,4112.9,4112.8,5.40947304]
[1759114851858,0.66184,4112.9,4112.8,5.40947304]
[1759114852056,0.97594,4112.9,4112.8,5.40947304]
[1759114852450,1.50883917,4112.9,4112.8,5.40947304]
[1759114855453,1.71753917,4112.9,4112.8,0.7428]
[1759114856959,1.71753917,4112.9,4112.8,2.20167304]
[1759114857161,1.19473917,4112.9,4112.8,2.20167304]
[1759114859455,1.51933917,4112.9,4112.8,1.76422304]
[1759114859656,1.73733917,4112.9,4112.8,0.7428]
[1759114860961,0.43739,4113.4,4113.2,0.4374]
[1759114861163,0.54696036,4113.8,4113.7,0.7467]
[1759114861463,0.76496036,4113.8,4113.7,1.76812304]
[1759114861660,1.20231036,4113.8,4113.7,1.76812304]
[1759114861861,0.76496036,4113.8,4113.7,1.76812304]
[1759114862261,0.76496036,4113.8,4113.7,1.62904774]
[1759114866865,0.22236036,4113.8,4113.7,1.62904774]
[1759114868066,0.54696036,4113.8,4113.7,1.62904774]
[1759114868563,0.76496036,4113.8,4113.7,1.62904774]
[1759114869769,0.54696036,4113.8,4113.7,1.62904774]
[1759114871760,0.76496036,4113.8,4113.7,1.62904774]
[1759114872666,0.54696036,4113.8,4113.7,1.62904774]
[1759114872962,0.22236036,4113.8,4113.7,1.62904774]
[1759114873859,0.22236036,4113.8,4113.7,2.06640774]
[1759114878268,0.00266036,4113.8,4113.7,2.06640774]
[1759114882866,0.00266036,4113.8,4113.4,0.5315]
[1759114882867,0.7382,4113.5,4113.4,0.5315]
[1759114883182,1.17566,4113.0,4112.9,3.4182]
[1759114883471,1.83751141,4113.0,4112.9,0.2104]
[1759114883676,0.86201,4112.6,4112.5,0.4225]
[1759114883878,0.43753,4112.4,4112.3,3.2078]
[1759114884077,1.19506,4112.1,4112.0,1.42244774]
[1759114884276,1.19506,4112.1,4112.0,1.63024774]
[1759114884676,0.7575,4112.1,4112.0,1.63024774]
[1759114886180,0.7575,4112.1,4112.0,1.42244774]
[1759114886682,0.7575,4112.1,4112.0,1.75484774]
[1759114887268,0.97373,4112.4,4112.3,0.4199]
[1759114887477,0.97373,4112.4,4112.3,1.63024774]
[1759114887868,0.2178,4112.4,4112.3,1.63024774]
[1759114888581,0.5362,4112.4,4112.3,1.63024774]
[1759114889471,0.7575,4112.4,4112.3,1.63024774]
[1759114891281,0.2178,4112.4,4112.3,1.63024774]
[1759114891486,0.4375,4112.7,4112.6,0.4199]
[1759114891686,0.6553,4112.7,4112.6,1.63024774]
[1759114891980,0.4375,4112.7,4112.6,1.63024774]
[1759114892175,4.40275,4113.1,4113.0,0.5401]
[1759114892375,4.93161286,4113.1,4113.0,1.42244774]
[1759114892576,1.19498,4112.8,4112.7,1.42244774]
[1759114893076,1.19498,4112.8,4112.7,1.63024774]
[1759114895690,0.87662,4112.5,4112.4,1.63024774]
[1759114895983,1.19502,4112.5,4112.4,0.7479]
[1759114896286,1.32962,4112.5,4112.4,0.5401]
[1759114897789,0.43755,4112.2,4112.1,0.88234774]
[1759114897994,1.19505,4112.2,4112.1,0.88234774]
[1759114898388,1.19505,4112.2,4112.1,1.42244774]
[1759114898789,1.19505,4112.2,4112.1,1.63024774]
[1759114900997,0.43755,4112.2,4112.1,1.63024774]
[1759114901699,0.65535,4112.2,4112.1,1.87524774]
[1759114901994,0.43755,4112.2,4112.1,1.87524774]
[1759114905091,0.65535,4112.2,4112.1,1.63024774]
[1759114905295,1.19505,4112.2,4112.1,1.87524774]
[1759114906293,0.43755,4112.2,4112.1,1.87524774]
[1759114912297,0.96984067,4112.2,4112.1,1.87524774]
[1759114914504,1.72114067,4112.2,4112.1,1.87524774]
[1759114916403,1.72114067,4112.2,4112.1,1.63024774]
[1759114916701,1.72114067,4112.2,4112.1,1.87524774]
[1759114918102,1.72114067,4112.2,4112.1,1.63024774]
[1759114918302,1.72114067,4112.2,4112.1,1.87524774]
[1759114920106,1.06989067,4112.2,4112.1,1.87524774]
[1759114921006,1.50744067,4112.2,4112.1,1.87524774]
[1759114922203,1.18764067,4112.2,4112.1,2.31280774]
[1759114922505,0.96984067,4112.2,4112.1,2.01458864]
[1759114923298,1.18644067,4112.2,4112.1,2.01458864]
[1759114924901,1.71994067,4112.2,4112.1,2.01458864]
[1759114925210,1.31558,4112.0,4111.9,0.56108512]
[1759114925399,1.84787067,4112.0,4111.9,0.00288512]
[1759114925598,10.05567067,4112.0,4111.9,0.00288512]
[1759114925907,10.05567067,4112.0,4111.0,0.1256]
[1759114925908,1.18777,4111.1,4111.0,0.6812]
[1759114926108,1.72006067,4111.1,4111.0,0.5582]
[1759114926309,1.18777,4111.1,4111.0,1.0097]
[1759114926905,1.18777,4111.1,4111.0,1.01259507]
[1759114929109,1.18777,4111.1,4111.0,0.24789507]
[1759114929505,1.18777,4111.1,4111.0,0.80609507]
[1759114929709,1.18777,4111.1,4111.0,1.01259507]
[1759114930913,1.18777,4111.1,4111.0,0.76759507]
[1759114931104,1.18777,4111.1,4111.0,1.01259507]
[1759114939708,1.18777,4111.1,4111.0,0.24789507]
[1759114939909,1.18777,4111.1,4111.0,0.00289507]
[1759114940508,1.71897795,4111.1,4111.0,0.00289507]
[1759114941513,42.51897795,4111.1,4111.0,0.00289507]
[1759114952310,1.06760795,4111.1,4111.0,1.88848371]
[1759114952612,1.17048,4111.1,4111.0,1.75838371]
[1759114952818,1.701735,4111.1,4111.0,0.00289507]
[1759114958323,1.701735,4111.1,4111.0,0.52179507]
[1759114959214,1.701735,4111.1,4111.0,0.73669507]
[1759114960820,1.701735,4111.1,4111.0,0.86679507]
[1759114960821,1.176035,4111.1,4111.0,0.86679507]
[1759114961026,0.968935,4111.1,4111.0,0.86679507]
[1759114961927,1.488135,4111.1,4111.0,0.86679507]
[1759114962227,1.701735,4111.1,4111.0,0.86679507]
[1759114962424,1.701735,4111.1,4111.0,0.73669507]
[1759114972141,1.701735,4111.1,4111.0,1.30448507]
[1759114972336,1.176035,4111.1,4111.0,1.30448507]
[1759114972536,1.050455,4111.1,4111.0,1.30448507]
[1759114972837,0.95688,4111.1,4111.0,1.30448507]
[1759114974337,1.17048,4111.1,4111.0,1.17438507]
[1759114974737,1.17048,4111.1,4111.0,1.30118507]
[1759114975134,1.17048,4111.1,4111.0,0.86349507]
[1759114977142,0.43768,4111.1,4111.0,0.86349507]
[1759114977642,0.97678,4111.1,4111.0,0.86349507]
[1759114978140,1.19488,4111.1,4111.0,0.00289507]
[1759114978933,4.93511595,4111.1,4111.0,0.00289507]
[1759114979646,45.73511595,4111.1,4111.0,0.00289507]
[1759114995746,4.93511595,4111.1,4111.0,0.76459507]
[1759114996449,4.93511595,4111.1,4111.0,0.00289507]
[1759114996635,4.93511595,4111.1,4111.0,0.88653935]
[1759114997649,4.93511595,4111.1,4111.0,1.64823935]
[1759115003154,4.40021595,4111.1,4111.0,6.77133935]
[1759115003342,0.1256,4111.5,4111.4,0.2121]
[1759115003343,0.3172,4111.5,4111.4,0.2121]
[1759115003543,1.28195319,4111.5,4111.4,1.64534428]
[1759115004048,1.71958319,4111.5,4111.4,1.64534428]
[1759115004351,0.75135319,4111.5,4111.4,6.64534428]
[1759115004544,1.08435319,4111.5,4111.4,6.64534428]
[1759115004946,1.30705319,4111.5,4111.4,6.64534428]
[1759115005146,1.30696897,4111.5,4111.4,6.64534428]
[1759115005348,0.7724,4111.5,4111.4,6.64534428]
[1759115006047,0.7724,4111.5,4111.4,6.89034428]
[1759115006940,0.333,4111.5,4111.4,6.89034428]
[1759115007146,1.21332,4111.6,4111.5,0.7474]
[1759115010647,1.21332,4111.6,4111.5,0.8807]
[1759115011544,0.65762,4111.6,4111.5,0.8807]
[1759115011745,0.99062,4111.6,4111.5,0.8807]
[1759115012449,1.21332,4111.6,4111.5,0.8807]
[1759115012851,1.21332,4111.6,4111.5,0.2234]
[1759115013057,1.21332,4111.6,4111.5,1.87604428]
[1759115013853,1.21332,4111.6,4111.5,2.00934428]
[1759115016555,1.21332,4111.6,4111.5,1.87604428]
[1759115017352,0.553,4111.6,4111.5,2.44697428]
[1759115017651,0.4376,4111.8,4111.7,0.7474]
[1759115017859,0.4376,4111.8,4111.7,1.87604428]
[1759115018456,0.4376,4111.8,4111.7,2.31365428]
[1759115018956,0.9906,4111.8,4111.7,1.87604428]
[1759115019356,1.2133,4111.8,4111.7,1.87604428]
[1759115019760,0.43759,4111.9,4111.7,2.31365428]
[1759115020053,0.43758,4112.1,4112.0,0.3567]
[1759115020260,0.99058,4112.1,4112.0,0.8807]
[1759115021156,0.99058,4112.1,4112.0,1.76434428]
[1759115025563,0.43754,4112.4,4112.3,0.4392]
[1759115025761,0.43754,4112.4,4112.3,1.87604428]
[1759115025959,0.43753,4112.5,4112.3,2.00538428]
[1759115026164,0.43753,4112.5,4112.4,0.7474]
[1759115026556,0.99053,4112.5,4112.4,0.7474]
[1759115029478,1.21323,4112.5,4112.4,0.7474]
[1759115029775,0.7757,4112.2,4112.1,0.5316]
[1759115029984,1.86961,4112.2,4111.8,4.39964428]
[1759115030169,1.21329,4111.9,4111.8,3.2078]
[1759115030582,1.21329,4111.9,4111.8,3.516]
[1759115031080,1.21329,4111.9,4111.8,3.2078]
[1759115031270,1.21329,4111.9,4111.8,3.516]
[1759115031781,1.21329,4111.9,4111.8,0.3082]
[1759115032372,1.74787967,4111.9,4111.8,0.3082]
[1759115033375,0.22,4111.4,4111.3,3.2078]
[1759115033576,1.31032363,4111.4,4111.3,3.2078]
[1759115035669,1.17848,4111.1,4111.0,0.00289507]
[1759115035876,1.95801064,4111.1,4111.0,0.00289507]
[1759115036480,1.95801064,4111.1,4111.0,5.07e-06]
[1759115036673,0.43777,4110.2,4110.0,1.21814428]
[1759115036875,0.7408,4110.1,4110.0,0.88364428]
[1759115037279,0.7408,4110.1,4110.0,1.09314428]
[1759115037478,0.7408,4110.1,4110.0,1.42764428]
[1759115037671,0.74391277,4110.1,4110.0,1.43077604]
[1759115038081,0.74391277,4110.1,4110.0,1.63627604]
[1759115038276,0.52441277,4110.1,4110.0,1.76727604]
[1759115039284,0.74391277,4110.1,4110.0,1.76727604]
[1759115039977,0.00311277,4110.1,4110.0,1.76727604]
[1759115040189,0.74391277,4110.1,4110.0,0.88363176]
[1759115040382,0.74391277,4110.1,4110.0,1.88127604]
[1759115040577,0.74391277,4110.1,4110.0,1.63627604]
[1759115040778,0.74391277,4110.1,4110.0,1.88127604]
[1759115040978,0.74391277,4110.1,4110.0,2.01227604]
[1759115041488,0.00311277,4110.1,4110.0,2.01227604]
[1759115042281,0.74391277,4110.1,4110.0,1.88127604]
[1759115042481,0.00311277,4110.1,4110.0,2.01227604]
[1759115043084,0.00311277,4110.1,4110.0,1.76727604]
[1759115043286,0.00311277,4110.1,4110.0,2.01227604]
[1759115044490,0.21781277,4110.1,4110.0,2.01227604]
[1759115044981,0.00311277,4110.1,4110.0,2.01227604]
[1759115045182,0.21781277,4110.1,4110.0,2.01227604]
[1759115045582,0.00311277,4110.1,4110.0,2.01227604]
[1759115046182,0.00311277,4110.1,4110.0,2.15110671]
[1759115046384,0.00311277,4110.1,4110.0,7.15110671]
[1759115048985,0.52441277,4110.1,4110.0,1.90610671]
[1759115049197,0.52441277,4110.1,4110.0,2.15110671]
[1759115049794,0.52441277,4110.1,4110.0,1.90610671]
[1759115049984,0.52441277,4110.1,4110.0,2.15110671]
[1759115051595,0.74391277,4110.1,4110.0,1.90610671]
[1759115051901,0.74391277,4110.1,4110.0,2.15110671]
[1759115053487,0.74391277,4110.1,4110.0,2.02010671]
[1759115053884,0.74391277,4110.1,4110.0,2.14970671]
[1759115054790,0.74391277,4110.1,4110.0,1.90470671]
[1759115054994,0.74391277,4110.1,4110.0,2.14970671]
[1759115055293,0.74391277,4110.1,4110.0,2.02010671]
[1759115055491,0.74391277,4110.1,4110.0,0.75263176]
[1759115055698,0.74391277,4110.1,4110.0,0.00313176]
[1759115055885,0.21781277,4110.1,4110.0,1.89450671]
[1759115056293,0.53191277,4110.1,4110.0,1.89450671]
[1759115057498,0.00311277,4110.1,4110.0,1.89450671]
[1759115057904,0.21051277,4110.1,4110.0,1.89450671]
[1759115058900,0.00311277,4110.1,4110.0,1.89450671]
[1759115060498,0.52461277,4110.1,4110.0,1.89450671]
[1759115061089,0.00311277,4110.1,4110.0,1.89450671]
[1759115064505,0.44089277,4110.1,4110.0,1.89450671]
[1759115065202,0.97786769,4110.1,4110.0,1.89450671]
[1759115065410,1.18526769,4110.1,4110.0,1.89450671]
[1759115065704,0.97786769,4110.1,4110.0,2.33229671]
[1759115067206,0.54008769,4110.1,4110.0,2.33229671]
[1759115067406,0.44089277,4110.1,4110.0,2.33229671]
[1759115068605,0.00311277,4110.1,4110.0,2.33229671]
[1759115069103,0.44089277,4110.1,4110.0,2.33229671]
[1759115070708,0.00311277,4110.1,4110.0,2.33229671]
[1759115071007,0.44089277,4110.1,4110.0,2.33229671]
[1759115071208,0.00311277,4110.1,4110.0,2.33229671]
[1759115072902,0.21251277,4110.1,4110.0,2.57729671]
[1759115073100,0.00311277,4110.1,4110.0,2.57729671]
[1759115075910,0.00311277,4110.1,4110.0,2.13950671]
[1759115077609,0.21251277,4110.1,4110.0,2.13950671]
[1759115077904,0.00311277,4110.1,4110.0,2.13950671]
[1759115080514,0.00311277,4110.1,4110.0,2.57729671]
[1759115080701,0.44089277,4110.1,4110.0,1.55482176]
[1759115080900,0.44089277,4110.1,4110.0,2.57729671]
[1759115081503,0.44089277,4110.1,4110.0,0.74243176]
[1759115081504,0.87579277,4110.1,4110.0,0.74243176]
[1759115081707,1.20359277,4110.1,4110.0,2.14300671]
[1759115081915,0.87579277,4110.1,4110.0,2.14300671]
[1759115082302,0.65029277,4110.1,4110.0,2.14300671]
[1759115083706,0.44089277,4110.1,4110.0,2.14300671]